Cogmind - Beta 10.2 @@@ ROGUE MODE // 2021.01.08 @ 13:33:46 Player: Cracklepappy Result: Destroyed by NK-0LA with NK-0LA's Tesla Doomcannon Performance ------------- Evolutions (1) 500 Regions Visited (6) 1200 Robots Destroyed (85) 425 Value Destroyed (1631) 1631 Prototype IDs (32) 640 Alien Tech Used (0) 0 Bonus (415) 415 TOTAL SCORE: 4811 Bonus ------- High Alert Combat Kills 48 Follower Combat Kills 67 Aligned with FarCom 300 Cogmind --------- Core Integrity 0/400 Matter 260/300 Energy 280/280 System Corruption 2% Temperature Cool (0) Movement Treading (200) Ox2 Location -8/Mines Parts ------- > --- POWER (1) -------- Heavy Ion Engine > --- PROPULSION (2) --- Light Treads Light Treads > --- UTILITY (4) ------ Large Storage Unit Large Storage Unit High-capacity Storage Unit Reactive Plating > --- WEAPON (2) ------- AWS/EX-DEC > --- INVENTORY (24) --- Reinforced Fission Core Light Treads Light Treads Light Treads Light Treads Combat Antigrav System Flying Fortress v7 Large Matter Pod (58) Experimental Targeting Computer Advanced Core Analyzer Improved Armor Integrity Analyzer Advanced Weapon Cycler Reactive Plating Skeleton Box Trap Reconfigurator Advanced Recalibrator Autogun Autogun EMP Blaster Rocket Launcher Deploy-a-Sentry Peak State ------------ > --- POWER ------------ Heavy Ion Engine > --- PROPULSION ------- Light Treads Light Treads > --- UTILITY ---------- Large Storage Unit Large Storage Unit High-capacity Storage Unit Reactive Plating > --- WEAPON ----------- AWS/EX-DEC > --- INVENTORY -------- Reinforced Fission Core Light Treads Light Treads Light Treads Light Treads Combat Antigrav System Flying Fortress v7 Large Matter Pod Experimental Targeting Computer Advanced Core Analyzer Improved Armor Integrity Analyzer Advanced Weapon Cycler Reactive Plating Trap Reconfigurator Advanced Recalibrator Heavy Assault Rifle Autogun Autogun EMP Blaster Rocket Launcher Deploy-a-Sentry [Rating: 42] Favorites ----------- Power Ion Engine Engine Ion Engine Propulsion Light Treads Treads Light Treads Wheel Wheel Utility Large Storage Unit Device Improved Terrain Scanner Storage Large Storage Unit Processor Improved Targeting Computer Protection Reactive Plating Weapon Heavy Assault Rifle Energy Gun AWS/EX-DEC Ballistic Gun Heavy Assault Rifle Launcher Rocket Launcher Build | -11 -10 -10 -9 -9 -9 -8 ------- Run | Scr Mat Min Mat Min Exi Min Slots Evolved 2 | . . . 2 . . . Power . | . . . . . . . Propulsion . | . . . . . . . Utility 2 | . . . 2 . . . Weapon . | . . . . . . . Parts Attached 71 | 8 16 . 23 . 24 . Power 6 | 1 1 . 2 . 2 . Engine 6 | 1 1 . 2 . 2 . Core . | . . . . . . . Reactor . | . . . . . . . Propulsion 21 | 3 3 . 8 . 7 . Treads 19 | 1 3 . 8 . 7 . Leg . | . . . . . . . Wheel 2 | 2 . . . . . . Hover . | . . . . . . . Flight . | . . . . . . . Utility 17 | 2 4 . 6 . 5 . Device 2 | 1 . . . . 1 . Storage 8 | 1 4 . 2 . 1 . Processor 4 | . . . 3 . 1 . Hackware . | . . . . . . . Protection 3 | . . . 1 . 2 . Artifact . | . . . . . . . Weapon 27 | 2 8 . 7 . 10 . Energy Gun 1 | . . . . . 1 . Energy Cannon . | . . . . . . . Ballistic Gun 19 | 2 6 . 5 . 6 . Ballistic Cannon . | . . . . . . . Launcher 7 | . 2 . 2 . 3 . Special Weapon . | . . . . . . . Impact Weapon . | . . . . . . . Slashing Weapon . | . . . . . . . Piercing Weapon . | . . . . . . . Special Melee Weapon . | . . . . . . . Unidentified Prototypes 2 | . . . 1 . 1 . Parts Lost 10 | . 1 . 2 . 7 . Power 1 | . 1 . . . . . Propulsion 3 | . . . . . 3 . Utility 1 | . . . . . 1 . Weapon 5 | . . . 2 . 3 . Highest Loss Streak 5 | . 1 . 1 . 5 . Average Slot Usage (%) 98 | . 99 100 99 100 95 88 Engine 12 | . 14 14 11 11 11 11 Treads 23 | . 25 28 22 22 21 22 Storage 27 | . 27 28 29 33 25 33 Processor 5 | . . . 9 . 8 . Protection 4 | . . . 4 11 8 11 Ballistic Gun 22 | . 27 28 21 22 15 . Naked Turns . | . . . . . . . Heaviest Build 92 | 14 59 59 88 88 92 92 Greatest Support 40 | 20 40 40 40 40 40 40 Greatest Overweight (x) 4 | 1 4 1 2 2 2 2 Average Overweight (x) 1 | . 1 1 1 2 1 2 Largest Inventory Capacity 24 | 6 18 18 24 24 24 24 Average Capacity 19 | 5 16 18 22 24 19 24 Most Carried 24 | 6 18 18 24 24 24 24 Average Carried 17 | 3 16 18 20 24 17 24 Final Capacity 24 | 6 18 18 24 24 24 24 Final Carried 24 | 6 18 18 24 24 24 24 Class Distribution -------------------- 61% | Mutant 27% | Hauler-Mutant 10% | Scavenger-Mutant Dominant Class ---------------- Mutant | -10/Materials Mutant | -10/Mines Hauler-Mutant | -9/Materials Hauler-Mutant | -9/Mines Mutant | -9/Exiles Hauler-Mutant | -8/Mines Resources | -11 -10 -10 -9 -9 -9 -8 ----------- Run | Scr Mat Min Mat Min Exi Min Matter Collected 2712 | 260 547 212 914 . 779 . Remotely . | . . . . . . . Salvage Created 2865 | 135 678 70 1464 . 518 . Parts 223 | 9 42 8 97 . 67 . Haulers Intercepted 4 | . 2 . 2 . . . Recyclers Shooed 7 | . 4 . 3 . . . Parts Field Recycled . | . . . . . . . Retrieved Matter . | . . . . . . . Parts Self-Destructed . | . . . . . . . Prevented . | . . . . . . . Kills | -11 -10 -10 -9 -9 -9 -8 ------- Run | Scr Mat Min Mat Min Exi Min Combat Hostiles Destroyed 58 | . 13 5 35 . 5 . Guns 42 | . 7 5 28 . 2 . AOE 16 | . 6 . 7 . 3 . Classes Destroyed 13 | 3 5 . 2 . 3 . Worker 5 | 1 4 . . . . . Tunneler 3 | 2 . . 1 . . . Hauler 4 | . 2 . 2 . . . Recycler 5 | 1 2 . 2 . . . Operator 1 | . 1 . . . . . Turret 1 | . . . . . 1 . Watcher 2 | . 2 . . . . . Swarmer 21 | . 6 5 10 . . . Grunt 23 | . 7 . 16 . . . Duelist 1 | . . . 1 . . . Sentry 8 | . . . 8 . . . Zionite 8 | . . . . . 8 . Assembled 4 | . . . . . 4 . Best Kill Streak 5 | 2 4 3 5 . 5 . Combat Bots Only 4 | . 4 3 4 . 3 . Max Kills in Single Turn 3 | 1 2 2 3 . 3 . Gunslinging 1 | . . 1 . . . . Exploded 3 | . 2 . 3 . 3 . Melee . | . . . . . . . Uniques/NPCs Destroyed 4 | . . . . . 4 . 8R-AWN (-9/Exiles) EX-BIN (-9/Exiles) EX-DEC (-9/Exiles) EX-HEX (-9/Exiles) Combat | -11 -10 -10 -9 -9 -9 -8 -------- Run | Scr Mat Min Mat Min Exi Min Damage Taken 3385 | . 647 126 1133 . 1423 56 Core 575 | . 164 8 201 . 174 28 Absorbed by Shields . | . . . . . . . Core Remaining (%) 65 | 100 . 31 . . . . Volleys Fired 265 | 12 59 12 92 . 90 . Largest 2 | 2 2 2 2 . 2 . Hottest 46 | 40 40 46 46 . 46 . Shots Fired 503 | 24 111 24 177 . 166 1 Gun 476 | 24 104 24 173 . 150 1 Cannon . | . . . . . . . Launcher 27 | . 7 . 4 . 16 . Special . | . . . . . . . Kinetic 471 | 24 104 24 173 . 146 . Thermal . | . . . . . . . Explosive 27 | . 7 . 4 . 16 . Electromagnetic 5 | . . . . . 4 1 Robot Hit Streak 35 | 8 14 3 30 . 35 2 Robot Miss Streak 4 | 2 4 3 3 . 4 . Penetration Max . | . . . . . . . Secondary Targets 5 | . . 2 3 . . . Max Gunslinging Chain 1 | . . 1 1 . . . Autonomous 5 | . . . . . 4 1 Shots Hit Robots 359 | 15 74 13 136 . 120 1 Core Hits 157 | 5 41 6 60 . 45 . Critical Hits 4 | . 2 1 . . 1 . Critical Kills . | . . . . . . . Critical Parts Destroyed 3 | . 2 1 . . . . Melee Attacks . | . . . . . . . Impact . | . . . . . . . Slashing . | . . . . . . . Piercing . | . . . . . . . Sneak Attacks . | . . . . . . . Combat Hostiles . | . . . . . . . Follow-up Attacks . | . . . . . . . Damage Inflicted 6882 | 177 1471 220 2646 . 2368 . Guns 5024 | 177 903 209 1973 . 1762 . Cannons . | . . . . . . . Explosions 1646 | . 515 . 612 . 519 . Melee . | . . . . . . . Ramming 212 | . 53 11 61 . 87 . Kinetic 4990 | 177 903 209 1973 . 1728 . Thermal . | . . . . . . . Explosive 1646 | . 515 . 612 . 519 . Electromagnetic 34 | . . . . . 34 . Impact . | . . . . . . . Slashing . | . . . . . . . Piercing . | . . . . . . . Highest Corruption 2 | . . . 2 2 2 2 Average Corruption 2 | . . . 2 2 2 2 Corruption Purged . | . . . . . . . Effects 37 | . . . 6 3 28 . Message Errors 10 | . . . . 1 9 . Heat Flow Errors 7 | . . . . 1 6 . Energy Discharges 8 | . . . 3 . 5 . Data Loss (minor) 6 | . . . 1 1 4 . Targeting Errors 4 | . . . 1 . 3 . Weapon Failures 2 | . . . 1 . 1 . Overload Shots . | . . . . . . . Overflow Damage 144 | . 71 . 73 . . . Projectiles . | . . . . . . . Explosions 144 | . 71 . 73 . . . Melee . | . . . . . . . Knockbacks 1 | . 1 . . . . . Impact 1 | . 1 . . . . . Kinetic . | . . . . . . . Secondary . | . . . . . . . Self-Inflicted Damage 230 | . 152 . 57 . 21 . Shots 9 | . 6 . 2 . 1 . Rammed 39 | . 11 4 8 . 16 . Targets Rammed 45 | . 13 4 9 . 19 . Kicked . | . . . . . . . Crushed 6 | . 2 . 1 . 3 . Highest Temperature 279 | . 5 12 46 217 279 . Average Temperature 39 | . 2 6 12 112 99 . Received Heat Transfer 618 | . 192 . 426 . . . Siege Activations . | . . . . . . . Robots Corrupted . | . . . . . . . Combat Hostiles . | . . . . . . . Parts Fried . | . . . . . . . Impact Corruptions 1 | . . . . . 1 . Robots Melted . | . . . . . . . Combat Hostiles . | . . . . . . . Parts Melted . | . . . . . . . Heat Transferred . | . . . . . . . Parts Sabotaged . | . . . . . . . Parts Stolen . | . . . . . . . Parts Stripped . | . . . . . . . Power Chain Reactions . | . . . . . . . Missiles Intercepted . | . . . . . . . Alert | -11 -10 -10 -9 -9 -9 -8 ------- Run | Scr Mat Min Mat Min Exi Min Peak Influence 534 | 20 279 82 534 208 . . Initial 208 | . 13 12 . 208 . . Average 122 | 8 74 51 217 208 . . Maximum Alert Level 2 | . 1 . 2 1 . . Low Security (%) 79 | 100 97 100 55 . . 100 Level 1 14 | . 2 . 26 100 . . Level 2 6 | . . . 18 . . . Level 3 . | . . . . . . . Level 4 . | . . . . . . . Level 5 . | . . . . . . . High Security . | . . . . . . . Max Security . | . . . . . . . Squads Dispatched 8 | . 4 . 4 . . . Investigation 4 | . 3 . 1 . . . Extermination . | . . . . . . . Reinforcement 4 | . 1 . 3 . . . Assault . | . . . . . . . Garrison . | . . . . . . . Intercept . | . . . . . . . Construction Impeded 1 | . . . 1 . . . Haulers Reinforced . | . . . . . . . Stealth | -11 -10 -10 -9 -9 -9 -8 --------- Run | Scr Mat Min Mat Min Exi Min Distress Signals 2 | . 1 . 1 . . . Communications Jammed . | . . . . . . . Distress Signals . | . . . . . . . Times Spotted 111 | . 22 8 51 . 29 1 Peak Tracking Total 9 | . 3 3 5 . 9 1 Tactical Retreats 9 | . 1 . 3 . 5 . Traps | -11 -10 -10 -9 -9 -9 -8 ------- Run | Scr Mat Min Mat Min Exi Min Traps Triggered 3 | . 1 . 2 . . . Indirectly . | . . . . . . . Trap Hack Attempts . | . . . . . . . Triggered . | . . . . . . . Disarmed . | . . . . . . . Reprogrammed . | . . . . . . . Reused . | . . . . . . . Traps Extracted . | . . . . . . . Installed . | . . . . . . . Triggered . | . . . . . . . Exploded 3 | . . . . . 3 . Machines | -11 -10 -10 -9 -9 -9 -8 ---------- Run | Scr Mat Min Mat Min Exi Min Machines Disabled 12 | . 2 . . . 10 . Max in Single Turn 1 | . 1 . . . 1 . Machines Sabotaged . | . . . . . . . Garrisons Compromised . | . . . . . . . Overloaded Fab Kills . | . . . . . . . Fab Network Shutdowns . | . . . . . . . Hacking | -11 -10 -10 -9 -9 -9 -8 --------- Run | Scr Mat Min Mat Min Exi Min Machines Accessed 20 | . 11 2 5 . 2 . Terminals 13 | . 8 2 3 . . . Fabricators . | . . . . . . . Repair Stations 2 | . 1 . 1 . . . Recycling Units 2 | . 2 . . . . . Scanalyzers 1 | . . . 1 . . . Garrison Access . | . . . . . . . Total Hacks 60 | . 38 4 16 . 2 . Successful 36 | . 21 3 10 . 2 . Failed 23 | . 16 1 6 . . . Catastrophic 4 | . 2 . 2 . . . Database Lockouts 1 | . 1 . . . . . Manual 28 | . 21 5 1 . 1 . Terminals 44 | . 29 4 11 . . . Fabricators . | . . . . . . . Repair Stations 10 | . 7 . 3 . . . Recycling Units 2 | . 2 . . . . . Scanalyzers 2 | . . . 2 . . . Garrison Access . | . . . . . . . Terminal Hacks 19 | . 8 3 6 . 2 . Record 1 | . . . . . 1 . Part Schematic 3 | . 2 1 . . . . Robot Schematic 1 | . 1 . . . . . Robot Analysis 3 | . 1 2 . . . . Prototype ID Bank 5 | . 2 . 3 . . . Branch Access Points 1 | . . . 1 . . . Locate Traps 2 | . 1 . 1 . . . Hauler Manifests 2 | . 1 . 1 . . . EX-Prototype ID Bank 1 | . . . . . 1 . Fabricator Hacks . | . . . . . . . Repair Station Hacks 7 | . 6 . 1 . . . Scan Component 4 | . 3 . 1 . . . Repair 3 | . 3 . . . . . Recycling Unit Hacks . | . . . . . . . Scanalyzer 2 | . . . 2 . . . Insert Component 1 | . . . 1 . . . Analyze 1 | . . . 1 . . . Garrison Access Hacks . | . . . . . . . Unauthorized Hacks 8 | . 7 . 1 . . . Terminals 6 | . 5 . 1 . . . Track 5 | . 4 . 1 . . . Operators 1 | . 1 . . . . . Fabricators . | . . . . . . . Repair Stations . | . . . . . . . Recycling Units 2 | . 2 . . . . . Tunnel 2 | . 2 . . . . . Scanalyzers . | . . . . . . . Garrison Access . | . . . . . . . Data Cores Recovered . | . . . . . . . Used . | . . . . . . . Hacking Detections 16 | . 9 2 5 . . . Full Trace Events 1 | . 1 . . . . . Feedback Events . | . . . . . . . Feedback Blocked . | . . . . . . . Robot Schematics Acquired 1 | . 1 . . . . . Robots Built . | . . . . . . . Matter . | . . . . . . . Time . | . . . . . . . Total Robot Build Rating . | . . . . . . . Part Schematics Acquired 4 | . 2 1 1 . . . Parts Built . | . . . . . . . Matter . | . . . . . . . Time . | . . . . . . . Total Part Build Rating . | . . . . . . . Parts Repaired 3 | . 3 . . . . . Time 78 | . 78 . . . . . Parts Recycled . | . . . . . . . Recycled Matter . | . . . . . . . Retrieved Matter . | . . . . . . . Retrieved Components . | . . . . . . . Parts Scanalyzed 1 | . . . 1 . . . Part Schematics Acquired 1 | . . . 1 . . . Parts Damaged . | . . . . . . . Bothacking | -11 -10 -10 -9 -9 -9 -8 ------------ Run | Scr Mat Min Mat Min Exi Min Used RIF Installer . | . . . . . . . Robots Hacked . | . . . . . . . Non-combat . | . . . . . . . Combat . | . . . . . . . Robot Hacks Applied . | . . . . . . . Relay Couplers Released . | . . . . . . . Robots Rewired . | . . . . . . . Allies Hacked . | . . . . . . . Hacks Repelled . | . . . . . . . Allies | -11 -10 -10 -9 -9 -9 -8 -------- Run | Scr Mat Min Mat Min Exi Min Total Allies 1 | . . 1 . . . . Largest Group 1 | . . 1 1 . . . Highest-Rated Group 31 | . . 31 26 . . . Highest-Rated Ally 31 | . . 31 26 . . . Total Orders . | . . . . . . . Ally Attacks 6 | . . 6 . . . . Total Damage 85 | . . 85 . . . . Kills 3 | . . 3 . . . . Allies Corrupted . | . . . . . . . Allies Melted . | . . . . . . . Intel | -11 -10 -10 -9 -9 -9 -8 ------- Run | Scr Mat Min Mat Min Exi Min Robot Analysis Total 3 | . 1 2 . . . . Derelict Logs Recovered 3 | . . 2 . 1 . . Drone Launches . | . . . . . . . Drone Recoveries . | . . . . . . . Exploration | -11 -10 -10 -9 -9 -9 -8 ------------- Run | Scr Mat Min Mat Min Exi Min Turns Passed 8458 | 127 2132 1263 1976 248 2698 14 Spaces Moved 3904 | 83 1027 674 753 125 1235 7 Core 1 | 1 . . . . . . Treads 3569 | 1 774 674 753 125 1235 7 Legs . | . . . . . . . Wheels 334 | 81 253 . . . . . Hover . | . . . . . . . Flight . | . . . . . . . Fastest Speed 50 | 50 90 180 180 200 180 200 Average Speed 178 | 88 165 180 188 200 185 200 Slowest Speed 200 | 160 200 180 200 200 200 200 Overloaded Moves . | . . . . . . . Propulsion Burnouts . | . . . . . . . Robots Hopped . | . . . . . . . Cave-ins Triggered . | . . . . . . . Exploration Rate (%) 59 | 7 97 98 71 44 90 6 Regions Visited 6 Branch Regions 4 Pre-discovered Areas 4 | . 2 1 . . 1 . Known Exits Taken 3 | . . . 1 1 1 . Unknown Exits Taken 3 | 1 1 1 . . . . Scrap Searched 1 | . . 1 . . . . Spaces Dug 61 | . 25 . . . 36 . Terrain Destroyed 128 | . 41 . 38 . 49 . Melee . | . . . . . . . Projectile . | . . . . . . . AOE 128 | . 41 . 38 . 49 . Terrain Rammed . | . . . . . . . Walls Destroyed . | . . . . . . . Machines Disabled . | . . . . . . . Actions | -11 -10 -10 -9 -9 -9 -8 --------- Run | Scr Mat Min Mat Min Exi Min Total 4899 | 108 1346 703 1142 124 1469 7 Wait 480 | . 193 12 230 . 45 . Move 3898 | 82 1026 673 752 124 1234 7 Hop . | . . . . . . . Pick Up 71 | 6 23 1 18 . 23 . Fast Attach 15 | 6 4 . 2 . 3 . Attach 15 | 1 2 . 4 . 8 . Detach 4 | . . . . . 4 . Swap 41 | 1 10 . 17 . 13 . Drop 59 | . 16 1 18 . 24 . Fire 265 | 12 59 12 92 . 90 . Melee . | . . . . . . . Ram . | . . . . . . . Kick . | . . . . . . . Crush 45 | . 13 4 9 . 19 . Escape Stasis . | . . . . . . . Rewire 6 | . . . . . 6 . Trap . | . . . . . . . Miscellaneous . | . . . . . . . Route ------- -11/Scrapyard -10/Materials (discovered 5 exits: *Mat x3 / *Min x2) -10/Mines (discovered 2 exits: *Mat x2) -9/Materials (discovered 3 exits: [*Mat x2] / *Min) -9/Mines -9/Exiles -8/Mines History --------- Turn | Location | Event 10 | -11/Scrapyard | Discovered new exit (range 14) 128 | -11/Scrapyard | Entered Materials 191 | -10/Materials | Discovered new exit (range 14) 304 | -10/Materials | Build established: Mutant 802 | -10/Materials | Discovered new exit (range 9) 886 | -10/Materials | Discovered new exit (range 8) 934 | -10/Materials | Central database locked down 941 | -10/Materials | Discovered new exit (range 3) 1127 | -10/Materials | Repaired Lgt. Treads 1154 | -10/Materials | Repaired Assault Rifle 1182 | -10/Materials | Repaired Lgt. Treads 1187 | -10/Materials | Core integrity fell below 50% 1677 | -10/Materials | Discovered new exit (range 10) 2260 | -10/Materials | Entered Mines 2367 | -10/Mines | Escorted by a lone wolf Derelict 2742 | -10/Mines | Found a hidden stash of uninstalled traps 2783 | -10/Mines | Discovered new exit (range 15) 2810 | -10/Mines | Received a Rocket Launcher from a helpful Derelict 2964 | -10/Mines | Discovered new exit (range 9) 3523 | -10/Mines | Entered Materials 3523 | -9/Materials | Accompanied by 1 ally 3523 | -9/Materials | Evolved 2 slots: Utility x2 3524 | -9/Materials | Identified exit to Mines 3891 | -9/Materials | Discovered new exit (range 5) 4421 | -9/Materials | Build established: Hauler-Mutant 4592 | -9/Materials | Discovered new exit (range 16) 5399 | -9/Materials | Core integrity fell below 50% 5499 | -9/Materials | Entered Mines 5593 | -9/Mines | Identified exit to Exiles 5739 | -9/Mines | Deemed a non-threat by the Exiles lab entrance 5747 | -9/Mines | Entered Exiles 5748 | -9/Exiles | Identified exit to Mines 5797 | -9/Exiles | Met 8R-AWN 5831 | -9/Exiles | Met EX-HEX 5925 | -9/Exiles | Met EX-DEC 6146 | -9/Exiles | Learned location of Zion (-7) 6196 | -9/Exiles | Met EX-BIN 6218 | -9/Exiles | Aligned with FarCom system 6220 | -9/Exiles | Given EX-Vault access code 6263 | -9/Exiles | Opened EX-Vault 6302 | -9/Exiles | Warned to stay clear of 0b10 Research branches 6363 | -9/Exiles | Build established: Scavenger-Mutant 6837 | -9/Exiles | Attacked by the Exiles 7047 | -9/Exiles | Destroyed 8R-AWN 7056 | -9/Exiles | Found Prototype Processor 7068 | -9/Exiles | Lost 5 parts (2n1u2w) 7108 | -9/Exiles | Core integrity fell below 20% 7247 | -9/Exiles | Destroyed EX-BIN 7280 | -9/Exiles | Build established: Mutant 7610 | -9/Exiles | Destroyed EX-DEC 7659 | -9/Exiles | Destroyed EX-HEX 7720 | -9/Exiles | Found Deploy-a-Sentry 7755 | -9/Exiles | Found Prototype Energy Gun 7755 | -9/Exiles | Identified AWS/EX-DEC 8246 | -9/Exiles | Found Flying Fortress v7 8251 | -9/Exiles | Found Trap Reconfigurator 8257 | -9/Exiles | Found Skeleton Box 8336 | -9/Exiles | Build established: Hauler-Mutant 8445 | -9/Exiles | Stole four prototypes: Flying Fortress v7, Skeleton Box, Trap Reconfigurator, Deploy-a-Sentry 8445 | -9/Exiles | Entered Mines 8458 | -8/Mines | NK-0LA came to Exiles' defense 8459 | -8/Mines | Destroyed by NK-0LA with NK-0LA's Tesla Doomcannon Last Messages --------------- 08061_ Dropped Lgt. Treads. 08061_ Acquired Lgt. Treads. 08135_ Dropped Hvy. Ion Engine. 08136_ Dropped Mining Laser. 08210_ System corrupted: Energy discharge (-109). 08242_ Discarded Imp. Targeting Computer. 08244_ Dropped Hvy. Assault Rifle. 08246_ Acquired Flying Fortress v7. 08249_ Dropped Hvy. Ion Engine. 08251_ Acquired Trap Reconfigurator. 08256_ Dropped Adv. Weapon Cycler. 08257_ Acquired Skeleton Box. 08258_ Dropped Hvy. Assault Rifle. 08260_ Acquired Adv. Weapon Cycler. 08305_ GAA2Z=&W2UVOEC70/A&:A7,MD4UFF 08349_ System corrupted: Component data lost. A strange signal echoes through the mines. LOCATION=MINES GOAL=ESCAPE 08458_ NK-0LA: "I came as fast as I could... Wait, it was you!" Map ----- +----------------------------------------------------+ | | | | | | | | | | | | | | | | | | | | | | | | | | | | | | | | | | | ?????????????????????????????????????????????????? | | ????????????????###???????###????????????????????? | | ????????????????# #??#### ##???????????????????? | | ????????????????# ### ##??????????????????? | | ?????????????????# #??????????????????? | | ??????????????????# ! #??????????????????? | | ???????????????????# ! #???????????????????? | | ???????????????????#![ ###???????????????????? | | ??????????????????## ##@ #?????????????????????? | | ?????????????????## ### #?????????????????????? | | ????????????????## ##?# #?????????????????????? | | ????????????????# #??# #?????????????????????? | | ????????????????# #??# #?????????????????????? | | ????????????????## ##??# #?????????????????????? | | ?????????????????####???# x#?????????????????????? | | ????????????????????????# ?????????????????????? | | ????????????????????????# ?????????????????????? | | ?????????????????????????###?????????????????????? | | ?????????????????????????????????????????????????? | | ?????????????????????????????????????????????????? | | ?????????????????????????????????????????????????? | | ?????????????????????????????????????????????????? | | ?????????????????????????????????????????????????? | | ?????????????????????????????????????????????????? | | ?????????????????????????????????????????????????? | | ?????????????????????????????????????????????????? | | ?????????????????????????????????????????????????? | | ?????????????????????????????????????????????????? | | ?????????????????????????????????????????????????? | | ?????????????????????????????????????????????????? | | ?????????????????????????????????????????????????? | | ?????????????????????????????????????????????????? | | ?????????????????????????????????????????????????? | +----------------------------------------------------+ Best States ------------- Heat Dissipation 28 Energy Generation 14 Energy Capacity 280 Matter Stores 300 Matter Capacity 300 Sight Range 16 Terrain Scan Range 16 Terrain Scan Density 10 Armor Coverage 150 Resistance: KI 20 Evasion (%) 44 Targeting Accuracy 6 Recoil Reduction 2 Item Schematics ----------------- Hcp. Storage Unit | -10/Materials | Hacked Med. Storage Unit | -10/Materials | Hacked Lrg. Storage Unit | -10/Mines | Hacked Reactive Plating | -9/Materials | Scanalyzed Robot Schematics ------------------ S-10 Pest | -10/Materials | Hacked Fabricated ------------ Nothing Alien Tech Used ----------------- None Achievements -------------- None Challenges ------------ None Game ------ Seed LargeInertialSheargun Manual? 0 Play Time 00:44:43 Cumulative 283.6 hours Start 2021.01.08 @ 12:07:13 End 2021.01.08 @ 13:33:46 Sessions 1 Manual Loads 0 Difficulty Rogue Special Mode None Game No. 289 Rogue 289 Adventurer 0 Explorer 0 Win Type - Total 4 Types 4/0/0/0/0/0/0/0/0 Lore% 64 Gallery% 79 Achievement% 61 Wizard Run 0 Options --------- ASCII 0 Keyboard 0 Movement Numpad Keybinds 0 Fullscreen 2 Font 24/Terminus Map View 76x50 Tactical HUD 1 Map Filters NONE Filters NONE Steam 1 RUN: fd0d8248-7420-472c-b773-f52a2f551501